bitfinex/quotes_BTCUSD_20250417
["timestamp","ask_amount","ask_price","bid_price","bid_amount"]
[1744910336391,0.2479979,84876.0,84873.0,0.23564556]
[1744910336974,0.01235996,84876.0,84867.0,0.23566213]
[1744910337249,0.01178258,84871.0,84867.0,0.24744553]
[1744910337487,0.01178258,84871.0,84863.0,0.24745522]
[1744910337643,0.23566169,84868.0,84864.0,0.23566873]
[1744910337822,0.23566169,84868.0,84865.0,0.23566803]
[1744910338021,0.2474376,84870.0,84866.0,0.24744654]
[1744910338224,0.01178272,84870.0,84867.0,0.23566047]
[1744910338433,0.23621662,84876.0,84873.0,0.2356448]
[1744910338646,0.23564802,84873.0,84869.0,0.2356573]
[1744910338866,0.23564802,84873.0,84870.0,0.23565447]
[1744910339563,0.24743033,84873.0,84870.0,0.23565447]
[1744910341046,0.01178203,84875.0,84872.0,0.23564897]
[1744910341255,0.01178203,84875.0,84873.0,0.23564457]
[1744910341655,0.01178203,84875.0,84872.0,0.23564897]
[1744910341656,0.01178217,84874.0,84871.0,0.23565159]
[1744910342200,0.24743284,84872.0,84869.0,0.23565483]
[1744910343446,0.24743284,84872.0,84870.0,0.2356545]
[1744910343733,0.24742807,84874.0,84871.0,0.2356507]
[1744910344117,0.00012827,84875.0,84874.0,0.23564342]
[1744910344951,0.00012827,84875.0,84872.0,0.24743129]
[1744910345165,0.24755313,84875.0,84870.0,0.24743716]
[1744910345445,0.2356462,84873.0,84870.0,0.01178272]
[1744910345657,0.01178217,84874.0,84871.0,0.01178258]
[1744910345865,0.24755313,84875.0,84871.0,0.01178258]
[1744910346248,0.24755313,84875.0,84873.0,0.23564602]
[1744910346725,0.00012827,84875.0,84872.0,0.24742982]
[1744910346924,0.00012827,84875.0,84874.0,0.23564342]
[1744910347561,0.00012827,84875.0,84873.0,0.2356462]
[1744910347783,0.0119103,84875.0,84872.0,0.24743116]
[1744910348255,0.00012827,84875.0,84872.0,0.24743116]
[1744910348458,0.00012827,84875.0,84864.0,0.00869463]
[1744910348459,0.01178231,84873.0,84864.0,0.00869463]
[1744910348661,0.24745963,84863.0,84860.0,0.235681]
[1744910348852,0.23566841,84865.0,84861.0,0.23567917]
[1744910349416,0.24745183,84865.0,84861.0,0.24746314]
[1744910349622,0.24745183,84865.0,84862.0,0.23567642]
[1744910349834,0.01178328,84866.0,84862.0,0.24746025]
[1744910350036,0.01178328,84866.0,84863.0,0.01178369]
[1744910350182,0.24744275,84870.0,84864.0,0.01178355]
[1744910350380,0.01178286,84869.0,84866.0,0.01178328]
[1744910351094,0.23566563,84866.0,84860.0,0.68461566]
[1744910351300,0.23567674,84862.0,84860.0,0.44893516]
[1744910351466,0.23567674,84862.0,84860.0,0.008732]
[1744910351663,0.23567674,84862.0,84859.0,0.23568386]
[1744910351921,0.23567674,84862.0,84859.0,0.01178425]
[1744910352300,0.24745771,84863.0,84860.0,0.23568198]
[1744910353249,0.24745687,84864.0,84861.0,0.23567868]
[1744910353421,0.23567458,84863.0,84861.0,0.23567868]
[1744910353652,0.23567952,84861.0,84859.0,0.24746912]
[1744910353829,0.01178425,84859.0,84855.0,0.0117848]
[1744910354158,0.01178425,84859.0,84855.0,0.0086649]
[1744910354354,0.01178425,84859.0,84856.0,0.2356921]
[1744910354795,0.28268416,84860.0,84847.0,0.2644393]
[1744910354796,0.0117855,84850.0,84847.0,0.2644393]
[1744910355001,0.23569967,84854.0,84851.0,0.24749206]
[1744910355537,0.23569967,84854.0,84852.0,0.34]
[1744910356266,0.23569967,84854.0,84852.0,0.34010581]
[1744910356716,0.23569967,84854.0,84852.0,0.00010581]
[1744910357057,0.23570174,84853.0,84852.0,0.00010581]
[1744910357668,0.33190174,84853.0,84852.0,0.00010581]
[1744910358072,0.4658905,84853.0,84852.0,0.00010581]
[1744910358279,0.4658905,84853.0,84852.0,1e-08]
[1744910360740,0.4658905,84853.0,84836.0,0.0004215]
[1744910360741,0.28394341,84838.0,84837.0,0.00029334]
[1744910360964,0.28394341,84838.0,84837.0,0.00042833]
[1744910361217,0.28394341,84838.0,84831.0,0.002]
[1744910361218,0.23576009,84832.0,84831.0,0.002]
[1744910361453,0.2357712,84828.0,84827.0,0.0004217]
[1744910361665,0.2813712,84828.0,84827.0,7.961e-05]
[1744910363827,0.2813712,84828.0,84827.0,1e-08]
[1744910365084,0.3277712,84828.0,84827.0,1e-08]
[1744910365878,0.28221568,84812.0,84811.0,0.0004217]
[1744910366076,0.28221568,84812.0,84811.0,0.00055684]
[1744910367842,0.23581568,84812.0,84811.0,0.00055684]
[1744910371619,0.33151568,84812.0,84811.0,0.00055684]
[1744910374230,0.46550444,84812.0,84811.0,0.00055684]
[1744910375845,0.46550444,84812.0,84811.0,1e-08]
[1744910376028,0.33083793,84804.0,84801.0,0.002]
[1744910376229,0.28544349,84802.0,84801.0,0.002]
[1744910376449,0.4048914,84802.0,84801.0,0.002]
[1744910377524,0.4512914,84802.0,84801.0,0.002]
[1744910377953,0.4512914,84802.0,84793.0,0.0004216]
[1744910377954,0.23586574,84794.0,84793.0,0.0004216]
[1744910378131,0.45131365,84794.0,84793.0,0.00055676]
[1744910378709,0.23588243,84788.0,84787.0,1e-08]
[1744910379049,0.41947119,84788.0,84787.0,1e-08]
[1744910379253,0.40493034,84788.0,84787.0,1e-08]
[1744910380607,0.01179356,84792.0,84787.0,0.00100001]
[1744910380804,0.23588161,84789.0,84787.0,0.00100001]
[1744910381045,0.23588161,84789.0,84788.0,0.00367438]
[1744910381557,0.01179314,84795.0,84790.0,0.01179384]
[1744910381680,0.23584361,84802.0,84788.0,0.00369077]
[1744910381681,0.01179217,84802.0,84796.0,0.011793]
[1744910381889,0.00013481,84800.0,84798.0,0.24764471]
[1744910382095,0.24764495,84799.0,84795.0,0.23586033]
[1744910382294,0.23585461,84798.0,84795.0,0.23586033]
[1744910382497,0.01192726,84800.0,84795.0,0.23586033]
[1744910382819,0.24764442,84799.0,84796.0,0.23585943]
[1744910383468,0.00013481,84800.0,84799.0,0.23585183]
[1744910384344,0.00013481,84800.0,84798.0,0.23585461]
[1744910385181,0.00013481,84800.0,84799.0,0.34]
[1744910385359,0.00013481,84800.0,84799.0,0.45944791]
[1744910387155,1e-08,84800.0,84799.0,0.45944791]
[1744910387829,1e-08,84800.0,84799.0,0.50754791]
[1744910389134,1e-08,84800.0,84799.0,0.74339974]
[1744910391103,1e-08,84800.0,84799.0,0.40339974]
[1744910391312,1e-08,84800.0,84799.0,0.40439974]
[1744910392439,1e-08,84800.0,84799.0,0.35629974]
[1744910393122,1e-08,84800.0,84799.0,0.69629974]
[1744910393733,1e-08,84800.0,84799.0,0.69982369]
[1744910395333,1e-08,84800.0,84799.0,0.35982369]
[1744910400346,1e-08,84800.0,84799.0,0.24037578]
[1744910401819,1e-08,84800.0,84799.0,0.23937578]
[1744910408695,1e-08,84800.0,84799.0,0.35882369]
[1744910408848,1e-08,84800.0,84799.0,0.35982369]
[1744910409688,0.01178828,84830.0,84821.0,0.23579066]
[1744910409689,0.0485,84827.0,84821.0,0.23579066]
[1744910409906,0.0485,84827.0,84826.0,0.23577676]
[1744910410117,0.04863511,84827.0,84826.0,0.23577676]
[1744910410321,0.04863511,84827.0,84826.0,0.25391919]
[1744910411437,0.00013511,84827.0,84826.0,0.25391919]
[1744910414346,0.23590909,84827.0,84826.0,0.01814243]
[1744910414786,0.00013511,84827.0,84826.0,0.25391919]
[1744910415214,0.00013511,84827.0,84826.0,0.25047568]
[1744910415419,0.00013511,84827.0,84826.0,0.25386704]
[1744910415613,0.00013511,84827.0,84826.0,0.37331495]
[1744910419744,0.00013511,84827.0,84826.0,0.36992359]
[1744910428741,0.00013511,84827.0,84826.0,0.70992359]
[1744910432403,0.00013511,84827.0,84826.0,0.36992359]
[1744910432604,0.00013511,84827.0,84826.0,0.25047568]
[1744910433433,0.23690909,84827.0,84826.0,0.01469892]
[1744910433629,0.28560909,84827.0,84826.0,0.01469892]
[1744910433837,0.24757444,84823.0,84819.0,0.23579526]
[1744910434037,0.04983511,84827.0,84824.0,0.23578117]
[1744910434238,0.04983511,84827.0,84825.0,0.23577835]
[1744910434614,0.04983511,84827.0,84825.0,0.25118247]
[1744910435501,0.00113511,84827.0,84825.0,0.25118247]
[1744910439521,0.00113511,84827.0,84826.0,0.23577676]
[1744910440916,0.00113511,84827.0,84826.0,0.23813442]
[1744910442101,0.00113511,84827.0,84826.0,0.23577676]
[1744910444386,0.00113511,84827.0,84826.0,0.35522467]
[1744910447511,0.00113511,84827.0,84826.0,0.23577676]
[1744910451279,0.00013511,84827.0,84826.0,0.23577676]
[1744910452631,0.00013511,84827.0,84826.0,0.23397676]
[1744910456992,0.04733511,84827.0,84826.0,0.23397676]
[1744910465003,0.04733511,84827.0,84825.0,0.25118247]
[1744910465210,0.04833511,84827.0,84825.0,0.01540412]
[1744910465419,0.0468,84826.0,84825.0,0.01540412]
[1744910465589,0.0468,84826.0,84824.0,0.2357815]
[1744910465797,0.0468,84826.0,84824.0,0.25052568]
[1744910466001,0.049,84825.0,84824.0,0.01474418]
[1744910466212,0.0958,84809.0,84800.0,0.44893516]
[1744910466559,0.0958,84809.0,84792.0,0.2358713]
[1744910466560,0.0484,84794.0,84792.0,0.2358713]
[1744910466827,0.06019328,84794.0,84791.0,0.01424053]
[1744910467064,0.0484,84794.0,84791.0,0.2501142]
[1744910467290,0.06019328,84794.0,84789.0,0.34]
[1744910467457,0.23586852,84793.0,84791.0,0.01413692]
[1744910467669,0.06019328,84794.0,84787.0,1e-08]
[1744910467670,0.23588132,84789.0,84787.0,1e-08]
[1744910467880,0.0464,84788.0,84786.0,0.23588663]
[1744910468081,0.0464,84788.0,84787.0,0.00013481]
[1744910470234,0.16584791,84788.0,84787.0,0.00013481]
[1744910470349,0.21564791,84788.0,84787.0,0.00013481]
[1744910471763,0.23018876,84788.0,84787.0,0.00013481]
[1744910473766,0.23018876,84788.0,84777.0,0.0004216]
[1744910473767,0.01454085,84779.0,84777.0,0.0004216]
[1744910473974,0.01454085,84779.0,84761.0,0.00869952]
[1744910473975,0.01180038,84743.0,84717.0,0.1]
[1744910474188,0.01180149,84735.0,84732.0,0.01180191]
[1744910474402,0.01179801,84760.0,84747.0,0.24779346]
[1744910474544,0.10799941,84750.0,84747.0,0.23599532]
[1744910474751,0.0962,84750.0,84748.0,0.23599209]
[1744910475437,0.10799941,84750.0,84746.0,0.2477936]
[1744910475913,0.10799941,84750.0,84747.0,0.01179982]
[1744910476143,0.0962,84750.0,84747.0,0.24779447]
[1744910476336,0.1967,84759.0,84756.0,0.01179857]
[1744910476613,0.01179857,84756.0,84752.0,0.2359812]
[1744910476814,0.23596983,84757.0,84753.0,0.24777741]
[1744910477025,0.01179857,84756.0,84753.0,0.01179899]
[1744910477415,0.01179857,84756.0,84752.0,0.24777967]
[1744910477612,0.24777411,84755.0,84751.0,0.2477825]
[1744910477813,0.24777851,84754.0,84749.0,0.44893516]
[1744910478040,0.52162627,84936.0,84749.0,0.44893516]
[1744910478241,0.23597816,84754.0,84749.0,0.44893516]
[1744910478619,0.23597748,84754.0,84750.0,0.2477847]
[1744910478829,0.23597748,84754.0,84749.0,0.4607347]
[1744910478830,0.24778027,84753.0,84749.0,0.44893516]
[1744910479072,0.24778347,84752.0,84748.0,0.24779224]
[1744910479213,0.01179913,84752.0,84749.0,0.24778928]
[1744910479618,0.01179927,84751.0,84748.0,0.23599256]
[1744910479839,0.2477849,84751.0,84747.0,0.35179982]
[1744910480040,0.01179913,84752.0,84749.0,0.23598965]
[1744910480412,0.24778027,84753.0,84749.0,0.24778919]
[1744910480621,0.23600755,84744.0,84742.0,0.00045073]
[1744910480814,0.0457,84743.0,84742.0,0.00045073]
[1744910481107,0.01180275,84726.0,84721.0,0.33360311]
[1744910481297,0.23605783,84725.0,84721.0,0.26265437]
[1744910481543,0.24785926,84726.0,84722.0,0.0118033]
[1744910481750,0.01180149,84735.0,84724.0,0.01180303]
[1744910481970,0.01180163,84734.0,84729.0,0.01180233]
[1744910482168,0.01180177,84733.0,84729.0,0.01180233]
[1744910482756,0.24782667,84737.0,84733.0,0.01180177]
[1744910482941,0.01180052,84742.0,84736.0,0.01180135]
[1744910483136,0.01180052,84742.0,84738.0,0.01180108]
[1744910483349,0.0118008,84740.0,84736.0,0.24782739]
[1744910483556,0.24782047,84739.0,84732.0,0.23603558]
[1744910483769,0.24782353,84738.0,84734.0,0.23603042]
[1744910483956,0.01180108,84738.0,84735.0,0.23602913]
[1744910484160,0.24782325,84738.0,84735.0,0.23602913]
[1744910484363,0.01180108,84738.0,84735.0,0.23602913]
[1744910484708,0.24782047,84739.0,84736.0,0.23602647]
[1744910485406,0.24782325,84738.0,84734.0,0.23603042]
[1744910485637,0.24782325,84738.0,84735.0,0.23602892]
[1744910485973,0.01180108,84738.0,84735.0,0.23602892]
[1744910487159,0.32960887,84743.0,84715.0,0.23650507]
[1744910487160,0.01180303,84724.0,84715.0,0.23650507]
[1744910487397,0.32836619,84722.0,84715.0,0.0004218]
[1744910487543,0.32836619,84722.0,84702.0,0.0004214]
[1744910487544,0.01180581,84704.0,84692.0,0.01180749]
[1744910487742,0.01180609,84702.0,84695.0,0.00055645]
[1744910487949,0.23613866,84696.0,84695.0,0.00055645]
[1744910488366,0.23613643,84697.0,84695.0,0.00155645]
[1744910488565,0.23792233,84696.0,84693.0,0.34]
[1744910488897,0.0017832,84696.0,84694.0,0.23614352]
[1744910489031,0.0017832,84696.0,84695.0,0.34]
[1744910489235,0.0017832,84696.0,84695.0,0.23614144]
[1744910489518,0.0017832,84696.0,84695.0,0.34]
[1744910489667,0.23792186,84696.0,84695.0,0.34]
[1744910489872,0.23792186,84696.0,84695.0,0.35437851]
[1744910490232,0.23792186,84696.0,84695.0,0.01437851]
[1744910490490,0.23614702,84693.0,84692.0,0.00867529]
[1744910491095,0.23614702,84693.0,84690.0,0.02660955]
[1744910491242,0.24795437,84693.0,84690.0,0.26276489]
[1744910491679,0.01180735,84693.0,84690.0,0.26276489]
[1744910491883,0.24795204,84694.0,84690.0,0.26276489]
[1744910492081,0.0027832,84696.0,84695.0,0.23614144]
[1744910492830,0.05720526,84708.0,84695.0,0.23614144]
[1744910492831,0.0454,84719.0,84718.0,0.23607733]
[1744910493027,0.23603877,84732.0,84722.0,0.0118033]
[1744910493028,0.23605067,84728.0,84722.0,0.0118033]
[1744910493463,0.01180261,84727.0,84724.0,0.23605971]
[1744910493676,0.23604723,84729.0,84725.0,0.23605772]
[1744910493880,0.23605478,84727.0,84723.0,0.24786532]
[1744910494150,0.24786131,84725.0,84723.0,0.23606311]
[1744910494330,0.01180275,84726.0,84723.0,0.23606311]
[1744910494548,0.01180275,84726.0,84724.0,0.00329135]
[1744910494729,0.24785955,84726.0,84724.0,0.00329135]
[1744910494953,0.01180303,84724.0,84721.0,0.23606825]
[1744910495153,0.24786385,84724.0,84721.0,0.23606825]
[1744910495302,0.23605783,84725.0,84722.0,0.23606515]
[1744910495656,0.23605783,84725.0,84723.0,0.23606328]
[1744910495885,0.00013502,84729.0,84728.0,0.23604947]
[1744910496836,0.00013502,84729.0,84728.0,0.2384097]
[1744910497055,0.00013502,84729.0,84728.0,0.23604947]
[1744910497795,0.00013502,84729.0,84728.0,0.23840968]
[1744910498217,0.047,84749.0,84748.0,0.23599376]
[1744910498363,0.0457,84757.0,84750.0,0.01179941]
[1744910498579,0.24777039,84756.0,84752.0,0.23598052]
[1744910498774,0.01179871,84755.0,84748.0,0.01179968]
[1744910499095,0.01179927,84751.0,84748.0,0.23599336]
[1744910499299,0.24778483,84751.0,84749.0,0.00368898]
[1744910499700,0.24778483,84751.0,84740.0,0.44893516]
[1744910499701,0.23598541,84751.0,84748.0,0.23599127]
[1744910499899,0.23598541,84751.0,84741.0,0.01180066]
[1744910499900,0.01179954,84749.0,84745.0,0.0118001]
[1744910500108,0.24778686,84751.0,84749.0,0.00368854]
[1744910500316,0.01179927,84751.0,84749.0,0.2396792]
[1744910500510,0.01179913,84752.0,84749.0,0.2396792]
[1744910500858,0.2359882,84750.0,84749.0,0.00368854]
[1744910501251,0.2359882,84750.0,84745.0,0.01420539]
[1744910501252,0.01179968,84748.0,84745.0,0.25020713]
[1744910501457,0.24779432,84748.0,84745.0,0.25020713]
[1744910501656,0.01179941,84750.0,84745.0,0.26200723]
[1744910501884,0.01179941,84750.0,84747.0,0.23599523]
[1744910502091,0.24778842,84750.0,84747.0,0.23599523]
[1744910502314,0.24779266,84749.0,84746.0,0.23599678]
[1744910502462,0.01179954,84749.0,84746.0,0.23599678]
[1744910502667,0.24778014,84753.0,84745.0,0.01420539]
[1744910502668,0.002,84769.0,84750.0,0.01179941]
[1744910502829,0.24777006,84756.0,84752.0,0.23598186]
[1744910503028,0.24777118,84756.0,84753.0,0.23597911]
[1744910503256,0.24777118,84756.0,84751.0,0.01179927]
[1744910503257,0.01179885,84754.0,84750.0,0.01179941]
[1744910503458,0.01179871,84755.0,84748.0,0.01179968]
[1744910503705,0.0457,84757.0,84752.0,0.01179913]
[1744910504236,0.01179871,84755.0,84751.0,0.2359836]
[1744910504435,0.01179871,84755.0,84751.0,0.2359854]
[1744910505390,0.01179871,84755.0,84752.0,0.23598183]
[1744910505596,0.0457,84757.0,84756.0,0.23597149]
[1744910505798,0.0479,84762.0,84758.0,0.01179829]
[1744910506022,0.05969773,84762.0,84759.0,0.23596314]
[1744910506212,0.01179815,84759.0,84756.0,0.2359711]
[1744910506415,0.0479,84762.0,84759.0,0.23596133]
[1744910506721,0.0479,84762.0,84761.0,0.23595757]
[1744910506920,0.00097907,84763.0,84761.0,0.23595757]
[1744910507355,0.00097907,84763.0,84762.0,0.23595479]
[1744910508583,0.00097907,84763.0,84762.0,0.6954027]
[1744910511319,0.00097907,84763.0,84762.0,0.34]
[1744910511450,0.23693107,84763.0,84762.0,0.34]
[1744910512197,0.23693107,84763.0,84746.0,0.2477975]
[1744910512198,0.01179899,84753.0,84746.0,0.2477975]
[1744910512337,0.01179857,84756.0,84753.0,0.34]
[1744910512539,0.24777031,84756.0,84753.0,0.57597982]
[1744910512840,0.01179829,84758.0,84755.0,0.34]
[1744910513718,0.23597121,84757.0,84755.0,0.34]
[1744910514097,0.01179871,84755.0,84753.0,0.34]
[1744910514296,0.24776965,84757.0,84754.0,0.23597706]
[1744910514519,0.24776965,84757.0,84755.0,0.34]
[1744910515127,0.01179857,84756.0,84755.0,0.34]
[1744910515326,0.24776965,84757.0,84755.0,0.34]
[1744910515726,0.24776965,84757.0,84755.0,0.0747528]
[1744910515951,0.24776965,84757.0,84754.0,0.23597706]
[1744910516152,0.0479,84760.0,84758.0,0.23596592]
[1744910516550,0.01179843,84757.0,84754.0,0.23597584]
[1744910516727,0.01179829,84758.0,84756.0,0.23597149]
[1744910517130,0.01179843,84757.0,84755.0,0.23597416]
[1744910517573,0.01179871,84755.0,84751.0,0.23598541]
[1744910517773,0.01179857,84756.0,84751.0,0.24778468]
[1744910517927,0.24776915,84757.0,84754.0,0.23597706]
[1744910518127,0.01179843,84757.0,84754.0,0.23597706]
[1744910518333,0.24776186,84759.0,84755.0,0.23597337]
[1744910518601,0.0479,84760.0,84757.0,0.01179843]
[1744910518885,0.23596347,84759.0,84754.0,0.01179885]
[1744910519453,0.29565842,84760.0,84757.0,0.23596601]
[1744910519634,0.23596324,84759.0,84757.0,0.23596601]
[1744910520078,0.24776139,84759.0,84756.0,0.23597103]
[1744910521202,0.24776714,84757.0,84752.0,0.23597997]
[1744910521404,0.23597371,84756.0,84752.0,0.23597997]
[1744910521610,0.24776714,84757.0,84754.0,0.23597642]
[1744910522448,0.01179843,84757.0,84755.0,0.2359737]
[1744910522813,0.2477683,84757.0,84754.0,0.23597642]
[1744910523760,0.24776149,84759.0,84754.0,0.01179885]
[1744910524110,0.24776546,84758.0,84755.0,0.23597427]
[1744910524310,0.01179829,84758.0,84756.0,0.23597032]
[1744910524618,0.24776505,84758.0,84756.0,0.23597032]
[1744910525139,0.24776505,84758.0,84755.0,0.23597427]
[1744910526228,0.24776505,84758.0,84756.0,0.23597149]
[1744910526729,0.01179829,84758.0,84756.0,0.23597149]
[1744910526927,0.24776514,84758.0,84756.0,0.23597149]
[1744910527181,0.01179815,84759.0,84755.0,0.23597427]
[1744910527479,0.0479,84760.0,84758.0,0.23596473]
[1744910527816,0.05969801,84760.0,84756.0,0.23597149]
[1744910527992,0.2956608,84760.0,84757.0,0.23596816]
[1744910528186,0.24776129,84759.0,84756.0,0.23597149]
[1744910528388,0.23596971,84757.0,84755.0,0.23597191]
[1744910528642,0.24776421,84758.0,84716.0,0.33360311]
[1744910528643,0.01179857,84756.0,84716.0,0.33360311]
[1744910528835,0.01180219,84730.0,84725.0,0.01180289]
[1744910529037,0.01180219,84730.0,84726.0,0.2478553]
[1744910529237,0.01180219,84730.0,84725.0,0.01180289]
[1744910529238,0.01180247,84728.0,84725.0,0.01180289]
[1744910529375,0.01180219,84730.0,84727.0,0.23605226]
[1744910529579,0.24784573,84731.0,84728.0,0.34]
[1744910529804,0.24784573,84731.0,84728.0,0.57604689]
[1744910530020,0.23604669,84729.0,84728.0,0.34]
[1744910530679,0.23604669,84729.0,84727.0,0.34]
[1744910530919,0.23604669,84729.0,84727.0,0.57605139]
[1744910531324,0.23604947,84728.0,84727.0,0.34]
[1744910531527,0.23604669,84729.0,84727.0,0.34]
[1744910531902,0.24784902,84729.0,84726.0,0.34]
[1744910532102,0.23604947,84728.0,84726.0,0.34]
[1744910532306,0.23604971,84728.0,84726.0,0.34]
[1744910532547,0.23605226,84727.0,84726.0,0.34]
[1744910532941,0.23605226,84727.0,84725.0,0.36243735]
[1744910533817,0.23605226,84727.0,84725.0,0.35358058]
[1744910533995,0.23605504,84726.0,84725.0,0.01358058]
[1744910534302,0.23607511,84719.0,84717.0,0.44893516]
[1744910534518,0.23607511,84719.0,84717.0,0.44907018]
[1744910534696,0.23607733,84718.0,84717.0,0.80263216]
[1744910535033,0.23607733,84718.0,84717.0,0.81145326]
[1744910538360,0.23607733,84718.0,84717.0,0.353697]
[1744910538507,0.33077733,84718.0,84717.0,0.013697]
[1744910539131,0.0947,84718.0,84717.0,0.013697]
[1744910539309,0.33077733,84718.0,84717.0,0.013697]
[1744910539511,0.33077733,84718.0,84717.0,0.00013502]
[1744910540409,0.33077733,84718.0,84717.0,0.01410809]
[1744910541572,0.23607733,84718.0,84717.0,0.01410809]
[1744910543345,0.0118033,84722.0,84718.0,0.01180386]
[1744910543541,0.236069,84721.0,84718.0,0.24787968]
[1744910543776,0.0478,84724.0,84721.0,0.23606897]
[1744910543957,0.01180205,84731.0,84727.0,0.23605179]
[1744910544159,0.01180219,84730.0,84727.0,0.23605179]
[1744910544558,0.24785003,84729.0,84726.0,0.24785752]
[1744910544912,0.01180303,84724.0,84721.0,0.23606897]
[1744910545422,0.01180233,84729.0,84727.0,0.23605225]
[1744910546056,0.0456,84732.0,84731.0,0.23604111]
[1744910546266,0.01180163,84734.0,84731.0,0.23604111]
[1744910546464,0.01180163,84734.0,84728.0,0.34]
[1744910546672,0.23601471,84741.0,84737.0,0.23602184]
[1744910546876,0.2525801,84745.0,84738.0,0.01180108]
[1744910547081,0.05959885,84754.0,84743.0,0.01180038]
[1744910547286,0.0491,84756.0,84731.0,0.44893516]
[1744910547287,0.0491,84756.0,84753.0,0.01179899]
[1744910547493,0.24777669,84754.0,84750.0,0.23598648]
[1744910547692,0.01179899,84753.0,84750.0,0.23598648]
[1744910547932,0.29687277,84756.0,84750.0,0.23598648]
[1744910548141,0.14708,84758.0,84757.0,0.23596871]
[1744910548342,0.14721525,84758.0,84757.0,0.23596871]
[1744910548552,0.00013525,84758.0,84757.0,0.25010629]
[1744910548960,0.00013525,84758.0,84757.0,0.01413758]
[1744910549308,0.00013525,84758.0,84753.0,0.35179899]
[1744910549309,0.01179857,84756.0,84753.0,0.34]
[1744910549532,0.23597637,84755.0,84753.0,0.35417117]
[1744910549903,0.23600212,84745.0,84744.0,0.78893516]
[1744910550141,0.23600212,84745.0,84744.0,0.34]
[1744910550342,0.23600212,84745.0,84744.0,0.339]
[1744910551123,0.23599933,84746.0,84744.0,0.339]
[1744910551339,0.23600353,84745.0,84743.0,0.00869798]
[1744910551567,0.01180052,84742.0,84739.0,0.23601712]
[1744910551768,0.24781012,84743.0,84740.0,0.23601502]
[1744910552105,0.01179996,84746.0,84743.0,0.23600656]
[1744910552407,0.01180024,84744.0,84740.0,0.3518008]
[1744910552564,0.24779739,84747.0,84740.0,0.57601428]
[1744910552771,0.24779739,84747.0,84744.0,0.34]
[1744910552974,0.01179885,84754.0,84750.0,0.23598771]
[1744910553317,1.17942185,84788.0,84750.0,0.23598771]
[1744910553318,0.01179773,84762.0,84756.0,0.23597149]
[1744910553615,0.01193354,84758.0,84754.0,0.23597653]
[1744910553823,0.24789947,84758.0,84755.0,0.23597424]
[1744910553982,0.01179843,84757.0,84753.0,0.23597917]
[1744910554174,0.01193354,84758.0,84753.0,0.24777816]
[1744910554391,0.00013525,84758.0,84756.0,0.23597134]
[1744910554813,0.23597152,84756.0,84754.0,0.34]
[1744910555415,0.00013525,84758.0,84757.0,0.23596871]
[1744910555622,0.01179843,84757.0,84754.0,0.34]
[1744910555974,0.01179857,84756.0,84752.0,0.23598017]
[1744910557087,0.24777591,84754.0,84753.0,0.34]
[1744910557364,0.24777009,84756.0,84753.0,0.57597843]
[1744910557971,0.01179857,84756.0,84754.0,0.23597702]
[1744910558390,0.24777064,84756.0,84754.0,0.23597702]
[1744910559000,0.24777591,84754.0,84752.0,0.34]
[1744910559327,0.24777314,84755.0,84752.0,0.34]
[1744910559540,0.01179857,84756.0,84752.0,0.34]
[1744910559541,0.01179857,84756.0,84753.0,0.23597984]
[1744910560946,0.01179857,84756.0,84754.0,0.23597706]
[1744910561745,0.01179857,84756.0,84753.0,0.23597984]
[1744910562366,0.24776792,84757.0,84753.0,0.23597984]
[1744910562569,0.24776792,84757.0,84754.0,0.23597432]
[1744910562773,0.01179857,84756.0,84753.0,0.23597984]
[1744910563158,0.01179843,84757.0,84754.0,0.23597688]
[1744910563717,0.24777006,84756.0,84753.0,0.23597938]
[1744910563829,0.01179843,84757.0,84753.0,0.23597938]
[1744910564040,0.01179857,84756.0,84753.0,0.23597984]
[1744910564278,0.00013525,84758.0,84753.0,0.01179899]
[1744910564484,0.00013525,84758.0,84748.0,0.23599132]
[1744910564485,0.01193354,84758.0,84755.0,0.34]
[1744910564641,0.23597149,84756.0,84755.0,0.34]
[1744910565508,0.24777732,84754.0,84753.0,0.34]
[1744910565662,0.01179899,84753.0,84750.0,0.57598814]
[1744910565853,0.2477737,84755.0,84752.0,0.57598143]
[1744910566208,0.2477737,84755.0,84753.0,0.23597929]
[1744910566434,0.01179871,84755.0,84753.0,0.23597929]
[1744910566633,0.24777045,84756.0,84753.0,0.23597929]
[1744910567012,0.01179857,84756.0,84754.0,0.23597655]
[1744910567215,0.24777085,84756.0,84753.0,0.23597929]
[1744910567797,0.24777085,84756.0,84754.0,0.23597698]
[1744910568179,0.01179843,84757.0,84755.0,0.23597427]
[1744910568425,0.01179843,84757.0,84751.0,0.24778215]
[1744910568426,0.23599655,84747.0,84731.0,0.23603941]
[1744910568577,0.16474791,84757.0,84695.0,0.33360311]
[1744910568578,0.01179996,84746.0,84737.0,0.01180122]
[1744910568777,0.01180052,84742.0,84738.0,0.34]
[1744910568991,0.24781099,84742.0,84740.0,0.34]
[1744910569191,0.01180038,84743.0,84740.0,0.34]
[1744910569402,0.01179996,84746.0,84740.0,0.34]
[1744910569599,0.0118001,84745.0,84742.0,0.34]
[1744910569860,0.0118001,84745.0,84742.0,0.57601022]
[1744910570326,0.23600664,84744.0,84742.0,0.3490048]
[1744910570660,0.24779491,84748.0,84744.0,0.01180024]
[1744910570861,0.23599944,84746.0,84743.0,0.23600769]
[1744910571009,0.0118001,84745.0,84742.0,0.0090048]
[1744910571209,0.23601047,84742.0,84741.0,0.34]
[1744910571412,0.01180024,84744.0,84741.0,0.34]
[1744910571606,0.23601003,84743.0,84741.0,0.34]
[1744910572113,0.24780562,84744.0,84741.0,0.34]
[1744910572441,0.24780562,84744.0,84742.0,0.23601026]
[1744910572664,0.24780562,84744.0,84741.0,0.23601197]
[1744910572944,0.24779359,84748.0,84741.0,0.01180066]
[1744910573161,0.24779979,84746.0,84742.0,0.23600994]
[1744910573459,0.24780426,84746.0,84742.0,0.24781028]
[1744910573607,0.01179996,84746.0,84743.0,0.23600639]
[1744910574036,0.23600301,84745.0,84743.0,0.23600639]
[1744910574274,0.24780179,84746.0,84743.0,0.23600639]
[1744910574478,0.24779392,84748.0,84746.0,0.23599803]
[1744910574680,0.24779368,84748.0,84745.0,0.23600205]
[1744910575086,0.01179941,84750.0,84744.0,0.01180024]
[1744910575256,0.01179857,84756.0,84747.0,0.01179982]
[1744910575480,0.00013525,84758.0,84757.0,0.23596871]
[1744910575700,0.00013525,84758.0,84754.0,0.01179885]
[1744910575897,0.00013525,84758.0,84757.0,0.23596871]
[1744910576528,0.00013525,84758.0,84757.0,0.57596871]
[1744910576723,0.00013525,84758.0,84757.0,0.74211662]
[1744910577131,0.0008438,84763.0,84762.0,0.57595479]
[1744910577296,0.0008438,84763.0,84762.0,0.6954027]
[1744910579467,0.0008438,84763.0,84762.0,0.70431707]
[1744910581783,0.0008438,84763.0,84762.0,0.70531707]
[1744910590770,0.0008438,84763.0,84762.0,0.58586916]
[1744910590967,0.0008438,84763.0,84762.0,0.34991437]